fUSD/lending_fUSD_20260513
["ID","MTS","AMOUNT","RATE_DAILY","PERIOD"]
[422178064,1778651445000,-4386.05,0.00020548,2]
[422178067,1778651445000,-177.31,0.00020561,2]
[422178066,1778651445000,-177.31,0.00020561,2]
[422178070,1778651445000,-177.30226867,0.00020561,2]
[422178068,1778651445000,-177.31,0.00020561,2]
[422178065,1778651445000,-4386.03,0.00020548,2]
[422178088,1778651445000,-1002.63,0.000211,2]
[422178071,1778651445000,-1152.0,0.0002059,2]
[422178073,1778651445000,-378.14,0.00020726,2]
[422178075,1778651445000,-2000.0,0.00020849,2]
[422178072,1778651445000,-171.69,0.0002069,2]
[422178074,1778651445000,-8336.4633057,0.00020839,2]
[422178069,1778651445000,-177.31,0.00020561,2]
[422178078,1778651445000,-367.0,0.00021,2]
[422178080,1778651445000,-160.0,0.00021,2]
[422178079,1778651445000,-1388.0,0.00021,2]
[422178077,1778651445000,-170.0,0.00021,2]
[422178081,1778651445000,-307.0,0.00021,2]
[422178083,1778651445000,-283.61,0.00021,2]
[422178084,1778651445000,-415.0480685,0.00021016,2]
[422178082,1778651445000,-174.0,0.00021,2]
[422178086,1778651445000,-2319.72410669,0.00021044,2]
[422178085,1778651445000,-3093.6601057,0.00021016,2]
[422178076,1778651445000,-4609.0,0.00020953,2]
[422178087,1778651445000,-2129.0,0.00021083,2]
[422178149,1778651446000,-2781.82699784,0.00023784,2]
[422178155,1778651446000,-174.0,0.00024,2]
[422178158,1778651446000,-2884.75459676,0.00024332,2]
[422178157,1778651446000,-1152.82969983,0.0002421,2]
[422178156,1778651446000,-270.7,0.00024174,2]
[422178154,1778651446000,-307.0,0.00024,2]
[422178148,1778651446000,-500.0,0.00023781,2]
[422178152,1778651446000,-367.0,0.00024,2]
[422178151,1778651446000,-500.0,0.00024,2]
[422178150,1778651446000,-12030.76,0.00023864,2]
[422178162,1778651446000,-2000.0,0.00024633,2]
[422178153,1778651446000,-1388.0,0.00024,2]
[422178160,1778651446000,-2000.0,0.00024633,2]
[422178171,1778651446000,-2000.0,0.00024649,2]
[422178161,1778651446000,-2000.0,0.00024633,2]
[422178159,1778651446000,-2000.0,0.00024633,2]
[422178164,1778651446000,-2000.0,0.00024633,2]
[422178165,1778651446000,-2000.0,0.00024633,2]
[422178168,1778651446000,-2000.0,0.00024633,2]
[422178167,1778651446000,-2000.0,0.00024633,2]
[422178166,1778651446000,-2000.0,0.00024633,2]
[422178169,1778651446000,-2000.0,0.00024649,2]
[422178170,1778651446000,-2000.0,0.00024649,2]
[422178174,1778651446000,-2000.0,0.00024649,2]
[422178173,1778651446000,-2000.0,0.00024649,2]
[422178147,1778651446000,-2014.0,0.00023679,5]
[422178163,1778651446000,-2000.0,0.00024633,2]
[422178146,1778651446000,-178.89,0.00023666,2]
[422178118,1778651446000,-1613.0,0.00022551,2]
[422178142,1778651446000,-1644.56942084,0.00023403,2]
[422178120,1778651446000,-3654.6003323,0.000226,2]
[422178119,1778651446000,-154.08954895,0.00022572,18]
[422178121,1778651446000,-2586.85809042,0.00022688,2]
[422178123,1778651446000,-317.18,0.00022691,2]
[422178122,1778651446000,-152.09,0.00022691,2]
[422178126,1778651446000,-1112.0,0.00022713,2]
[422178125,1778651446000,-530.47727054,0.0002271,2]
[422178127,1778651446000,-283.62,0.00022862,2]
[422178124,1778651446000,-1478.25,0.00022691,2]
[422178128,1778651446000,-858.50842233,0.00023,2]
[422178131,1778651446000,-307.0,0.00023,2]
[422178130,1778651446000,-1388.0,0.00023,2]
[422178132,1778651446000,-174.0,0.00023,2]
[422178133,1778651446000,-6453.0,0.00023048,2]
[422178129,1778651446000,-367.0,0.00023,2]
[422178134,1778651446000,-181.13544215,0.00023108,11]
[422178136,1778651446000,-249.27,0.0002314,2]
[422178135,1778651446000,-166.18469155,0.0002314,2]
[422178137,1778651446000,-2682.57183977,0.00023236,2]
[422178140,1778651446000,-2910.6,0.00023368,2]
[422178138,1778651446000,-241.66,0.00023288,4]
[422178139,1778651446000,-773.88,0.00023368,2]
[422178141,1778651446000,-8273.02565333,0.00023389,2]
[422178143,1778651446000,-1929.0,0.00023583,5]
[422178144,1778651446000,-2467.0,0.00023583,5]
[422178145,1778651446000,-1002.63,0.000236,7]
[422178175,1778651446000,-2000.0,0.00024649,2]
[422178233,1778651446000,-587.860234,0.00024695,2]
[422178176,1778651446000,-2000.0,0.00024649,2]
[422178207,1778651446000,-1200.0,0.00024669,2]
[422178209,1778651446000,-792.0,0.00024669,2]
[422178208,1778651446000,-1200.0,0.00024669,2]
[422178211,1778651446000,-1650.0,0.00024681,2]
[422178210,1778651446000,-1650.0,0.00024681,2]
[422178212,1778651446000,-1650.0,0.00024681,2]
[422178214,1778651446000,-1650.0,0.00024681,2]
[422178213,1778651446000,-1650.0,0.00024681,2]
[422178215,1778651446000,-1650.0,0.00024681,2]
[422178216,1778651446000,-1650.0,0.00024681,2]
[422178221,1778651446000,-210.29237,0.00024695,2]
[422178220,1778651446000,-210.29237,0.00024695,2]
[422178204,1778651446000,-1200.0,0.00024669,2]
[422178219,1778651446000,-1486.0,0.00024681,2]
[422178222,1778651446000,-210.29237,0.00024695,2]
[422178223,1778651446000,-210.29237,0.00024695,2]
[422178226,1778651446000,-265.647684,0.00024695,2]
[422178225,1778651446000,-151.0,0.00024695,2]
[422178224,1778651446000,-151.0,0.00024695,2]
[422178231,1778651446000,-265.647684,0.00024695,2]
[422178227,1778651446000,-151.0,0.00024695,2]
[422178232,1778651446000,-587.860234,0.00024695,2]
[422178228,1778651446000,-265.647684,0.00024695,2]
[422178230,1778651446000,-265.647684,0.00024695,2]
[422178229,1778651446000,-151.0,0.00024695,2]
[422178172,1778651446000,-2000.0,0.00024649,2]
[422178218,1778651446000,-1650.0,0.00024681,2]
[422178206,1778651446000,-1200.0,0.00024669,2]
[422178217,1778651446000,-1650.0,0.00024681,2]
[422178203,1778651446000,-1200.0,0.00024669,2]
[422178179,1778651446000,-2000.0,0.00024649,2]
[422178205,1778651446000,-1200.0,0.00024669,2]
[422178178,1778651446000,-2000.0,0.00024649,2]
[422178177,1778651446000,-2000.0,0.00024649,2]
[422178180,1778651446000,-1945.0,0.00024658,2]
[422178183,1778651446000,-606.04,0.00024658,2]
[422178181,1778651446000,-1000.0,0.00024658,2]
[422178185,1778651446000,-157.72,0.00024658,2]
[422178182,1778651446000,-187.15,0.00024658,2]
[422178186,1778651446000,-609.1,0.00024658,2]
[422178187,1778651446000,-688.47,0.00024658,2]
[422178189,1778651446000,-719.24,0.00024658,2]
[422178190,1778651446000,-2000.0,0.00024659,2]
[422178184,1778651446000,-683.69,0.00024658,2]
[422178199,1778651446000,-2000.0,0.00024659,2]
[422178201,1778651446000,-1200.0,0.00024669,2]
[422178188,1778651446000,-157.59,0.00024658,2]
[422178202,1778651446000,-1200.0,0.00024669,2]
[422178200,1778651446000,-1200.0,0.00024669,2]
[422178195,1778651446000,-2000.0,0.00024659,2]
[422178193,1778651446000,-2000.0,0.00024659,2]
[422178196,1778651446000,-2000.0,0.00024659,2]
[422178198,1778651446000,-2000.0,0.00024659,2]
[422178197,1778651446000,-2000.0,0.00024659,2]
[422178192,1778651446000,-2000.0,0.00024659,2]
[422178191,1778651446000,-2000.0,0.00024659,2]
[422178194,1778651446000,-2000.0,0.00024659,2]
[422178282,1778651447000,-3273.043782,0.00025,2]
[422178278,1778651447000,-1400.69718259,0.00025,2]
[422178279,1778651447000,-326.52333138,0.00025,2]
[422178281,1778651447000,-157.72,0.00025,7]
[422178280,1778651447000,-176.33427008,0.00025,2]
[422178277,1778651447000,-380.88622569,0.00025,2]
[422178273,1778651447000,-169.42264821,0.00025,2]
[422178275,1778651447000,-151.64888359,0.00025,2]
[422178272,1778651447000,-2228.09656728,0.00025,2]
[422178271,1778651447000,-7218.20171558,0.00025,2]
[422178274,1778651447000,-4851.04467009,0.00025,2]
[422178284,1778651447000,-157.59,0.00025,7]
[422178276,1778651447000,-150.0,0.00025,2]
[422178286,1778651447000,-3273.043782,0.00025,2]
[422178296,1778651447000,-152.0,0.00025011,2]
[422178285,1778651447000,-3273.043782,0.00025,2]
[422178288,1778651447000,-1384.631533,0.00025,2]
[422178283,1778651447000,-3273.043782,0.00025,2]
[422178289,1778651447000,-1384.631533,0.00025,2]
[422178290,1778651447000,-1384.631533,0.00025,2]
[422178292,1778651447000,-152.0,0.00025011,2]
[422178291,1778651447000,-1090.53509947,0.00025011,2]
[422178293,1778651447000,-151.0,0.00025011,2]
[422178295,1778651447000,-156.587,0.00025011,2]
[422178294,1778651447000,-152.0,0.00025011,2]
[422178297,1778651447000,-197.90474961,0.00025011,2]
[422178301,1778651447000,-152.0,0.00025011,2]
[422178269,1778651447000,-173.17586745,0.00025,60]
[422178287,1778651447000,-1384.631533,0.00025,2]
[422178270,1778651447000,-998.11480699,0.00025,2]
[422178237,1778651447000,-587.860234,0.00024695,2]
[422178266,1778651447000,-609.1,0.00024946,2]
[422178234,1778651447000,-151.0,0.00024695,2]
[422178236,1778651447000,-229.320776,0.00024695,2]
[422178235,1778651447000,-587.860234,0.00024695,2]
[422178242,1778651447000,-1730.0,0.00024695,2]
[422178239,1778651447000,-2000.0,0.00024695,2]
[422178238,1778651447000,-2000.0,0.00024695,2]
[422178240,1778651447000,-2000.0,0.00024695,2]
[422178241,1778651447000,-2000.0,0.00024695,2]
[422178243,1778651447000,-1300.0,0.00024695,2]
[422178299,1778651447000,-152.0,0.00025011,2]
[422178244,1778651447000,-1300.0,0.00024695,2]
[422178246,1778651447000,-1300.0,0.00024695,2]
[422178248,1778651447000,-2258.0,0.00024698,2]
[422178267,1778651447000,-688.47,0.00024946,2]
[422178245,1778651447000,-1300.0,0.00024695,2]
[422178250,1778651447000,-1161.3,0.00024761,2]
[422178249,1778651447000,-500.0,0.00024761,2]
[422178252,1778651447000,-683.69,0.00024802,7]
[422178258,1778651447000,-500.0,0.00024867,2]
[422178251,1778651447000,-606.04,0.00024802,7]
[422178260,1778651447000,-2991.49051684,0.0002488,2]
[422178254,1778651447000,-688.47,0.00024802,7]
[422178253,1778651447000,-609.1,0.00024802,7]
[422178256,1778651447000,-719.24,0.00024802,7]
[422178262,1778651447000,-178.89,0.000249,2]
[422178265,1778651447000,-683.69,0.00024946,2]
[422178264,1778651447000,-606.04,0.00024946,2]
[422178268,1778651447000,-719.24,0.00024946,2]
[422178247,1778651447000,-1223.0,0.00024695,2]
[422178298,1778651447000,-152.0,0.00025011,2]
[422178410,1778651447000,-151.0,0.000255,2]
[422178305,1778651447000,-152.0,0.00025011,2]
[422178379,1778651447000,-157.78,0.00025342,30]
[422178372,1778651447000,-683.69,0.00025234,7]
[422178373,1778651447000,-609.1,0.00025234,7]
[422178381,1778651447000,-157.72,0.00025342,30]
[422178375,1778651447000,-688.47,0.00025234,7]
[422178383,1778651447000,-157.59,0.00025342,30]
[422178385,1778651447000,-9035.0,0.00025353,2]
[422178387,1778651447000,-683.69,0.00025378,7]
[422178393,1778651447000,-693.86,0.00025499,2]
[422178391,1778651447000,-719.24,0.00025378,7]
[422178389,1778651447000,-688.47,0.00025378,7]
[422178406,1778651447000,-151.0,0.000255,2]
[422178400,1778651447000,-151.0,0.000255,2]
[422178370,1778651447000,-606.04,0.00025234,7]
[422178408,1778651447000,-156.417414,0.000255,2]
[422178397,1778651447000,-53956.23857637,0.000255,2]
[422178404,1778651447000,-151.0,0.000255,2]
[422178402,1778651447000,-151.0,0.000255,2]
[422178413,1778651447000,-1918.484184,0.000255,2]
[422178415,1778651447000,-1918.484184,0.000255,2]
[422178417,1778651447000,-1918.484184,0.000255,2]
[422178419,1778651447000,-1918.484184,0.000255,2]
[422178421,1778651447000,-151.0,0.000255,2]
[422178431,1778651447000,-151.0,0.000255,2]
[422178423,1778651447000,-151.0,0.000255,2]
[422178429,1778651447000,-151.0,0.000255,2]
[422178425,1778651447000,-151.0,0.000255,2]
[422178303,1778651447000,-152.0,0.00025011,2]
[422178395,1778651447000,-500.0,0.00025499,2]
[422178378,1778651447000,-719.24,0.00025234,7]
[422178427,1778651447000,-151.0,0.000255,2]
[422178364,1778651447000,-1269.0,0.00025147,2]
[422178368,1778651447000,-165.686,0.00025147,2]
[422178309,1778651447000,-152.0,0.00025011,2]
[422178312,1778651447000,-152.0,0.00025011,2]
[422178326,1778651447000,-150.0,0.00025075,2]
[422178328,1778651447000,-150.716,0.00025075,2]
[422178316,1778651447000,-227.35436347,0.00025011,2]
[422178314,1778651447000,-152.0,0.00025011,2]
[422178318,1778651447000,-151.0,0.00025011,2]
[422178320,1778651447000,-243.468,0.00025075,2]
[422178322,1778651447000,-166.813,0.00025075,2]
[422178324,1778651447000,-150.833,0.00025075,2]
[422178332,1778651447000,-606.04,0.0002509,2]
[422178336,1778651447000,-609.1,0.0002509,2]
[422178330,1778651447000,-150.0,0.00025075,2]
[422178307,1778651447000,-152.0,0.00025011,2]
[422178340,1778651447000,-719.24,0.0002509,2]
[422178334,1778651447000,-683.69,0.0002509,2]
[422178360,1778651447000,-926.0,0.00025147,2]
[422178356,1778651447000,-3541.0,0.00025147,2]
[422178358,1778651447000,-1388.29,0.00025147,2]
[422178347,1778651447000,-259.580565,0.00025118,2]
[422178349,1778651447000,-259.580565,0.00025118,2]
[422178366,1778651447000,-417.0,0.00025147,2]
[422178345,1778651447000,-259.580565,0.00025118,2]
[422178338,1778651447000,-688.47,0.0002509,2]
[422178343,1778651447000,-259.580565,0.00025118,2]
[422178342,1778651447000,-300.0,0.000251,7]
[422178362,1778651447000,-281.15,0.00025147,2]
[422178352,1778651447000,-625.0,0.00025147,2]
[422178354,1778651447000,-164.706,0.00025147,2]
[422178533,1778651448000,-500.0,0.000255,2]
[422178509,1778651448000,-500.0,0.000255,2]
[422178511,1778651448000,-500.0,0.000255,2]
[422178517,1778651448000,-500.0,0.000255,2]
[422178525,1778651448000,-500.0,0.000255,2]
[422178527,1778651448000,-500.0,0.000255,2]
[422178519,1778651448000,-500.0,0.000255,2]
[422178521,1778651448000,-500.0,0.000255,2]
[422178523,1778651448000,-500.0,0.000255,2]
[422178532,1778651448000,-500.0,0.000255,2]
[422178507,1778651448000,-500.0,0.000255,2]
[422178515,1778651448000,-500.0,0.000255,2]
[422178543,1778651448000,-500.0,0.000255,2]
[422178529,1778651448000,-500.0,0.000255,2]
[422178535,1778651448000,-500.0,0.000255,2]
[422178534,1778651448000,-500.0,0.000255,2]
[422178537,1778651448000,-500.0,0.000255,2]
[422178536,1778651448000,-500.0,0.000255,2]
[422178539,1778651448000,-500.0,0.000255,2]
[422178538,1778651448000,-500.0,0.000255,2]
[422178542,1778651448000,-500.0,0.000255,2]
[422178540,1778651448000,-500.0,0.000255,2]
[422178541,1778651448000,-500.0,0.000255,2]
[422178505,1778651448000,-500.0,0.000255,2]
[422178545,1778651448000,-500.0,0.000255,2]
[422178531,1778651448000,-500.0,0.000255,2]
[422178513,1778651448000,-500.0,0.000255,2]
[422178461,1778651448000,-500.0,0.000255,2]
[422178497,1778651448000,-500.0,0.000255,2]
[422178548,1778651448000,-500.0,0.000255,2]
[422178433,1778651448000,-151.0,0.000255,2]
[422178435,1778651448000,-151.0,0.000255,2]
[422178440,1778651448000,-956.803423,0.000255,2]
[422178442,1778651448000,-739.71569,0.000255,2]
[422178444,1778651448000,-956.803423,0.000255,2]
[422178448,1778651448000,-956.803423,0.000255,2]
[422178446,1778651448000,-739.71569,0.000255,2]
[422178459,1778651448000,-500.0,0.000255,2]
[422178455,1778651448000,-500.0,0.000255,2]
[422178451,1778651448000,-739.71569,0.000255,2]
[422178453,1778651448000,-956.803423,0.000255,2]
[422178502,1778651448000,-500.0,0.000255,2]
[422178457,1778651448000,-500.0,0.000255,2]
[422178475,1778651448000,-500.0,0.000255,2]
[422178477,1778651448000,-500.0,0.000255,2]
[422178484,1778651448000,-500.0,0.000255,2]
[422178486,1778651448000,-500.0,0.000255,2]
[422178481,1778651448000,-500.0,0.000255,2]
[422178480,1778651448000,-500.0,0.000255,2]
[422178499,1778651448000,-500.0,0.000255,2]
[422178501,1778651448000,-500.0,0.000255,2]
[422178490,1778651448000,-500.0,0.000255,2]
[422178488,1778651448000,-500.0,0.000255,2]
[422178495,1778651448000,-500.0,0.000255,2]
[422178492,1778651448000,-500.0,0.000255,2]
[422178463,1778651448000,-500.0,0.000255,2]
[422178547,1778651448000,-500.0,0.000255,2]
[422178438,1778651448000,-739.71569,0.000255,2]
[422178544,1778651448000,-500.0,0.000255,2]
[422178582,1778651448000,-500.0,0.000255,2]
[422178579,1778651448000,-500.0,0.000255,2]
[422178580,1778651448000,-500.0,0.000255,2]
[422178578,1778651448000,-500.0,0.000255,2]
[422178585,1778651448000,-640.533142,0.000255,2]
[422178583,1778651448000,-500.0,0.000255,2]
[422178584,1778651448000,-500.0,0.000255,2]
[422178586,1778651448000,-151.0,0.000255,2]
[422178588,1778651448000,-683.69,0.00025523,2]
[422178587,1778651448000,-151.0,0.000255,2]
[422178590,1778651448000,-719.24,0.00025523,2]
[422178589,1778651448000,-688.47,0.00025523,2]
[422178577,1778651448000,-500.0,0.000255,2]
[422178593,1778651448000,-688.47,0.00025667,7]
[422178594,1778651448000,-719.24,0.00025667,7]
[422178596,1778651448000,-1002.63,0.000257,7]
[422178595,1778651448000,-1356.0,0.000257,7]
[422178597,1778651448000,-270.7,0.00025786,2]
[422178598,1778651448000,-12030.76,0.00025795,7]
[422178599,1778651448000,-181.13544215,0.00025807,13]
[422178601,1778651448000,-688.47,0.00025811,2]
[422178604,1778651448000,-688.47,0.00025955,2]
[422178600,1778651448000,-683.69,0.00025811,2]
[422178602,1778651448000,-719.24,0.00025811,2]
[422178603,1778651448000,-683.69,0.00025955,2]
[422178546,1778651448000,-500.0,0.000255,2]
[422178591,1778651448000,-500.0,0.00025616,2]
[422178575,1778651448000,-500.0,0.000255,2]
[422178592,1778651448000,-683.69,0.00025667,7]
[422178576,1778651448000,-500.0,0.000255,2]
[422178549,1778651448000,-500.0,0.000255,2]
[422178581,1778651448000,-500.0,0.000255,2]
[422178550,1778651448000,-500.0,0.000255,2]
[422178552,1778651448000,-500.0,0.000255,2]
[422178551,1778651448000,-500.0,0.000255,2]
[422178553,1778651448000,-500.0,0.000255,2]
[422178554,1778651448000,-500.0,0.000255,2]
[422178556,1778651448000,-500.0,0.000255,2]
[422178558,1778651448000,-500.0,0.000255,2]
[422178557,1778651448000,-500.0,0.000255,2]
[422178559,1778651448000,-500.0,0.000255,2]
[422178561,1778651448000,-500.0,0.000255,2]
[422178560,1778651448000,-500.0,0.000255,2]
[422178555,1778651448000,-500.0,0.000255,2]
[422178571,1778651448000,-500.0,0.000255,2]
[422178564,1778651448000,-500.0,0.000255,2]
[422178563,1778651448000,-500.0,0.000255,2]
[422178565,1778651448000,-500.0,0.000255,2]
[422178568,1778651448000,-500.0,0.000255,2]
[422178569,1778651448000,-500.0,0.000255,2]
[422178566,1778651448000,-500.0,0.000255,2]
[422178567,1778651448000,-500.0,0.000255,2]
[422178572,1778651448000,-500.0,0.000255,2]
[422178573,1778651448000,-500.0,0.000255,2]
[422178562,1778651448000,-500.0,0.000255,2]
[422178574,1778651448000,-500.0,0.000255,2]
[422178570,1778651448000,-500.0,0.000255,2]
[422178641,1778651449000,-458.98,0.00026171,7]
[422178646,1778651449000,-458.98,0.000262,2]
[422178636,1778651449000,-458.98,0.00026142,7]
[422178647,1778651449000,-406.06,0.000262,2]
[422178645,1778651449000,-455.79,0.000262,2]
[422178643,1778651449000,-479.49,0.00026171,7]
[422178638,1778651449000,-479.49,0.00026142,7]
[422178640,1778651449000,-455.79,0.00026171,7]
[422178639,1778651449000,-404.03,0.00026171,7]
[422178642,1778651449000,-406.06,0.00026171,7]
[422178648,1778651449000,-479.49,0.000262,2]
[422178644,1778651449000,-404.03,0.000262,2]
[422178649,1778651449000,-404.03,0.00026229,7]
[422178661,1778651449000,-479.49,0.00026257,2]
[422178650,1778651449000,-455.79,0.00026229,7]
[422178655,1778651449000,-157.72,0.00026246,30]
[422178653,1778651449000,-479.49,0.00026229,7]
[422178652,1778651449000,-406.06,0.00026229,7]
[422178654,1778651449000,-688.47,0.00026243,7]
[422178656,1778651449000,-157.59,0.00026246,30]
[422178658,1778651449000,-455.79,0.00026257,2]
[422178659,1778651449000,-458.98,0.00026257,2]
[422178657,1778651449000,-404.03,0.00026257,2]
[422178660,1778651449000,-406.06,0.00026257,2]
[422178662,1778651449000,-404.03,0.00026286,2]
[422178664,1778651449000,-458.98,0.00026286,2]
[422178635,1778651449000,-455.79,0.00026142,7]
[422178651,1778651449000,-458.98,0.00026229,7]
[422178634,1778651449000,-404.03,0.00026142,7]
[422178608,1778651449000,-404.03,0.00026027,2]
[422178637,1778651449000,-406.06,0.00026142,7]
[422178606,1778651449000,-550.0,0.00026,2]
[422178605,1778651449000,-719.24,0.00025955,2]
[422178669,1778651449000,-458.98,0.00026315,7]
[422178609,1778651449000,-455.79,0.00026027,2]
[422178607,1778651449000,-1356.0,0.00026,7]
[422178611,1778651449000,-458.98,0.00026027,2]
[422178610,1778651449000,-157.72,0.00026027,2]
[422178612,1778651449000,-406.06,0.00026027,2]
[422178614,1778651449000,-479.49,0.00026027,2]
[422178615,1778651449000,-404.03,0.00026055,7]
[422178613,1778651449000,-157.59,0.00026027,2]
[422178620,1778651449000,-404.03,0.00026084,2]
[422178616,1778651449000,-455.79,0.00026055,7]
[422178633,1778651449000,-157.59,0.00026136,7]
[422178617,1778651449000,-458.98,0.00026055,7]
[422178619,1778651449000,-479.49,0.00026055,7]
[422178622,1778651449000,-458.98,0.00026084,2]
[422178623,1778651449000,-406.06,0.00026084,2]
[422178621,1778651449000,-455.79,0.00026084,2]
[422178625,1778651449000,-688.47,0.00026099,7]
[422178624,1778651449000,-479.49,0.00026084,2]
[422178627,1778651449000,-455.79,0.00026113,2]
[422178629,1778651449000,-406.06,0.00026113,2]
[422178628,1778651449000,-458.98,0.00026113,2]
[422178630,1778651449000,-479.49,0.00026113,2]
[422178626,1778651449000,-404.03,0.00026113,2]
[422178632,1778651449000,-157.72,0.00026136,7]
[422178631,1778651449000,-178.89,0.00026134,2]
[422178618,1778651449000,-406.06,0.00026055,7]
[422178665,1778651449000,-406.06,0.00026286,2]
[422178671,1778651449000,-479.49,0.00026315,7]
[422178666,1778651449000,-479.49,0.00026286,2]
[422178703,1778651449000,-455.79,0.00026459,2]
[422178701,1778651449000,-479.49,0.00026431,2]
[422178705,1778651449000,-406.06,0.00026459,2]
[422178702,1778651449000,-404.03,0.00026459,2]
[422178704,1778651449000,-458.98,0.00026459,2]
[422178706,1778651449000,-479.49,0.00026459,2]
[422178707,1778651449000,-157.72,0.00026465,7]
[422178708,1778651449000,-157.59,0.00026465,7]
[422178709,1778651449000,-152.0,0.00026475,7]
[422178710,1778651449000,-152.0,0.00026475,7]
[422178712,1778651449000,-455.79,0.00026488,7]
[422178711,1778651449000,-404.03,0.00026488,7]
[422178713,1778651449000,-458.98,0.00026488,7]
[422178714,1778651449000,-406.06,0.00026488,7]
[422178715,1778651449000,-479.49,0.00026488,7]
[422178718,1778651449000,-150.0,0.00026507,4]
[422178717,1778651449000,-150.0,0.00026507,4]
[422178716,1778651449000,-150.0,0.00026507,4]
[422178720,1778651449000,-150.0,0.00026507,4]
[422178719,1778651449000,-150.0,0.00026507,4]
[422178723,1778651449000,-150.0,0.00026507,4]
[422178663,1778651449000,-455.79,0.00026286,2]
[422178721,1778651449000,-150.0,0.00026507,4]
[422178724,1778651449000,-152.0,0.00026515,7]
[422178726,1778651449000,-455.79,0.00026517,7]
[422178725,1778651449000,-404.03,0.00026517,7]
[422178727,1778651449000,-458.98,0.00026517,7]
[422178700,1778651449000,-406.06,0.00026431,2]
[422178699,1778651449000,-458.98,0.00026431,2]
[422178722,1778651449000,-150.0,0.00026507,4]
[422178698,1778651449000,-455.79,0.00026431,2]
[422178697,1778651449000,-404.03,0.00026431,2]
[422178667,1778651449000,-404.03,0.00026315,7]
[422178668,1778651449000,-455.79,0.00026315,7]
[422178673,1778651449000,-455.79,0.00026344,7]
[422178674,1778651449000,-458.98,0.00026344,7]
[422178672,1778651449000,-404.03,0.00026344,7]
[422178676,1778651449000,-479.49,0.00026344,7]
[422178675,1778651449000,-406.06,0.00026344,7]
[422178679,1778651449000,-404.03,0.00026373,2]
[422178678,1778651449000,-157.59,0.00026356,2]
[422178677,1778651449000,-157.72,0.00026356,2]
[422178680,1778651449000,-455.79,0.00026373,2]
[422178681,1778651449000,-458.98,0.00026373,2]
[422178682,1778651449000,-406.06,0.00026373,2]
[422178670,1778651449000,-406.06,0.00026315,7]
[422178683,1778651449000,-479.49,0.00026373,2]
[422178684,1778651449000,-157.3393873,0.0002638,2]
[422178696,1778651449000,-1161.3,0.0002643,2]
[422178695,1778651449000,-528.13859196,0.0002643,2]
[422178690,1778651449000,-404.03,0.00026402,7]
[422178693,1778651449000,-406.06,0.00026402,7]
[422178694,1778651449000,-479.49,0.00026402,7]
[422178692,1778651449000,-458.98,0.00026402,7]